bitfinex/quotes_ETHUSD_20250923
["timestamp","ask_amount","ask_price","bid_price","bid_amount"]
[1758586426206,0.1184,4210.6,4210.0,0.1184]
[1758586426408,0.88958743,4210.5,4210.4,2.37507125]
[1758586426748,0.51180332,4210.5,4210.4,2.49347125]
[1758586426953,0.02,4210.9,4210.8,2.37484563]
[1758586427113,0.53172108,4210.9,4210.8,2.37484563]
[1758586427434,0.53172108,4210.9,4210.8,2.49324563]
[1758586427798,0.53172108,4210.9,4210.8,0.1184]
[1758586428043,1.24782108,4210.9,4210.8,2.49324563]
[1758586428223,0.53172108,4210.9,4210.8,2.51699408]
[1758586428409,0.02,4210.9,4210.8,2.51699408]
[1758586428612,0.02,4210.9,4210.8,4.04287001]
[1758586428800,0.02,4210.9,4210.8,4.48497001]
[1758586433011,0.02,4210.9,4210.8,3.88977001]
[1758586433211,0.02,4210.9,4210.8,4.33187001]
[1758586433811,0.02,4210.9,4210.8,3.88977001]
[1758586434919,0.02,4210.9,4210.8,4.48497001]
[1758586435305,0.001,4211.1,4211.0,3.16673284]
[1758586435510,0.001,4211.1,4211.0,10.17448016]
[1758586435738,0.001,4211.1,4211.0,10.74593284]
[1758586438041,0.001,4211.1,4211.0,10.59283284]
[1758586438759,0.001,4211.1,4211.0,6.60883284]
[1758586438941,0.001,4211.1,4211.0,10.73050877]
[1758586439255,0.2455,4211.1,4211.0,6.35773284]
[1758586439558,0.2455,4211.1,4210.8,2.49324563]
[1758586439559,0.7171,4211.1,4210.9,2.37478306]
[1758586439724,0.7171,4211.1,4210.8,0.1184]
[1758586439725,0.7161,4211.0,4210.8,0.1184]
[1758586441946,0.7161,4211.0,4210.3,0.004]
[1758586442155,0.7161,4211.0,4210.6,0.1184]
[1758586442335,0.32101855,4210.9,4210.6,0.1184]
[1758586442835,0.7161,4210.8,4210.6,0.1184]
[1758586446058,0.7161,4210.7,4210.6,0.1184]
[1758586446765,0.7161,4210.7,4210.3,0.004]
[1758586446766,1.22694567,4210.7,4210.3,0.004]
[1758586447062,0.7161,4210.7,4210.3,0.004]
[1758586447364,0.32093534,4210.6,4210.3,0.004]
[1758586447746,0.7161,4210.5,4210.3,0.004]
[1758586449161,0.7161,4210.4,4210.3,0.004]
[1758586449873,1.22708067,4210.4,4210.3,0.004]
[1758586450228,0.001,4210.8,4210.3,2.49752766]
[1758586450450,0.001,4210.8,4210.4,0.02375071]
[1758586450663,0.001,4210.8,4210.7,0.1184]
[1758586450877,0.001,4210.8,4210.7,2.49330203]
[1758586451435,0.001,4210.8,4210.7,0.1184]
[1758586452663,0.001,4210.8,4210.7,2.49330203]
[1758586453878,1.22825482,4210.8,4210.7,0.1184]
[1758586454057,0.84002548,4210.8,4210.7,2.49330203]
[1758586454392,0.001,4210.8,4210.7,2.49330203]
[1758586458545,0.001,4210.8,4210.7,3.14035105]
[1758586458754,0.001,4210.8,4210.7,3.93235105]
[1758586460769,0.001,4210.8,4210.7,3.90860203]
[1758586460970,0.001,4210.8,4210.7,3.75550203]
[1758586461275,0.001,4210.8,4210.7,4.78216201]
[1758586461585,0.001,4210.8,4210.7,4.31196201]
[1758586462586,0.001,4210.8,4210.7,3.51996201]
[1758586463282,0.001,4210.8,4210.7,3.54371103]
[1758586463480,0.001,4210.8,4210.7,4.16701103]
[1758586463783,0.001,4210.8,4210.7,3.54371103]
[1758586466086,0.001,4210.8,4210.7,3.51996201]
[1758586466289,0.2487,4210.8,4210.7,3.51996201]
[1758586466587,0.001,4210.8,4210.7,8.94201103]
[1758586466759,0.001,4210.8,4210.7,8.91826201]
[1758586473706,0.001,4210.8,4210.7,8.76516201]
[1758586474378,0.001,4210.8,4210.7,8.29496201]
[1758586474583,0.001,4210.8,4210.7,8.76516201]
[1758586475111,0.001,4210.8,4210.7,8.91826201]
[1758586475272,0.001,4210.8,4210.7,8.29496201]
[1758586476312,0.001,4210.8,4210.7,8.76516201]
[1758586476488,0.001,4210.8,4210.7,8.91826201]
[1758586477723,0.001,4210.8,4210.7,8.76516201]
[1758586478082,0.001,4210.8,4210.7,8.29496201]
[1758586479194,0.001,4210.8,4210.7,3.28530203]
[1758586479512,0.001,4210.8,4210.7,7.29105105]
[1758586479712,0.001,4210.8,4210.7,7.26730203]
[1758586481899,0.001,4210.8,4210.7,7.89060203]
[1758586483725,0.001,4210.8,4210.7,7.26730203]
[1758586483894,0.001,4210.8,4210.7,8.24724201]
[1758586484099,0.001,4210.8,4210.7,8.87054201]
[1758586486734,0.001,4210.8,4210.7,8.24724201]
[1758586488398,0.6718,4210.8,4210.7,8.24724201]
[1758586488823,0.2334,4210.8,4210.7,8.24724201]
[1758586490598,0.6718,4210.8,4210.7,8.24724201]
[1758586490799,0.2334,4210.8,4210.7,8.24724201]
[1758586495512,0.001,4210.8,4210.7,7.26730203]
[1758586495834,1.40725646,4210.8,4210.7,7.26730203]
[1758586496142,0.89439496,4210.8,4210.7,7.26730203]
[1758586497151,0.89439496,4210.8,4210.7,6.47530203]
[1758586497318,1.40721193,4210.8,4210.7,6.47530203]
[1758586497824,0.89439496,4210.8,4210.7,6.47530203]
[1758586498136,0.22359496,4210.8,4210.7,6.47530203]
[1758586498338,0.001,4210.8,4210.7,8.15273201]
[1758586498508,0.001,4210.8,4210.7,8.74363201]
[1758586498942,0.001,4210.8,4210.7,8.59053201]
[1758586499118,0.001,4210.8,4210.7,7.26730203]
[1758586500449,0.001,4210.8,4210.7,7.85820203]
[1758586500625,0.001,4210.8,4210.7,7.26730203]
[1758586500946,0.001,4210.8,4210.7,7.85820203]
[1758586501682,0.001,4210.8,4210.7,7.26730203]
[1758586501848,0.001,4210.8,4210.7,8.23193201]
[1758586502013,0.001,4210.8,4210.7,8.82283201]
[1758586502430,0.001,4210.8,4210.7,8.23193201]
[1758586503052,0.001,4210.8,4210.7,8.66973201]
[1758586503847,0.001,4210.8,4210.7,8.23193201]
[1758586504927,0.001,4210.8,4210.7,8.82283201]
[1758586507274,0.001,4210.8,4210.7,8.66973201]
[1758586507668,0.001,4210.8,4210.7,8.23193201]
[1758586514271,0.001,4210.8,4210.7,8.82283201]
[1758586514433,0.001,4210.8,4210.7,11.82283201]
[1758586514775,0.02,4211.9,4211.2,0.792]
[1758586515072,0.02,4211.9,4211.8,3.28468177]
[1758586515243,0.02,4211.9,4211.8,7.28942458]
[1758586515436,0.6698,4212.6,4212.5,3.16588724]
[1758586515633,1.40433767,4212.6,4212.5,7.14688724]
[1758586515865,0.89211224,4212.6,4212.5,7.26528724]
[1758586516229,0.6698,4212.6,4212.5,7.26528724]
[1758586519057,0.6698,4212.6,4212.5,6.95157837]
[1758586519766,0.6698,4212.6,4212.5,2.97157837]
[1758586521195,0.6698,4212.6,4212.5,0.1184]
[1758586521408,0.89160837,4212.6,4212.5,0.1184]
[1758586521562,1.40268952,4212.6,4212.5,0.1184]
[1758586521766,1.54495847,4212.6,4212.2,3.98]
[1758586521991,1.40038952,4212.5,4212.3,0.1184]
[1758586522296,0.22180837,4212.4,4212.3,0.1184]
[1758586522456,0.22180837,4212.4,4212.3,2.49239995]
[1758586522657,0.88930837,4212.4,4212.3,0.1184]
[1758586524691,0.88930837,4212.4,4212.3,2.49239995]
[1758586525311,0.88930837,4212.4,4212.3,0.1184]
[1758586526397,0.88930837,4212.4,4212.3,2.49239995]
[1758586527217,0.88930837,4212.4,4212.3,0.1184]
[1758586527417,0.88930837,4212.4,4212.3,2.49239995]
[1758586528287,0.88941614,4212.4,4212.3,2.49239995]
[1758586529221,0.6675,4212.4,4212.3,2.49239995]
[1758586529380,0.88943722,4212.4,4212.3,2.49239995]
[1758586530120,0.6675,4212.4,4212.3,2.49239995]
[1758586530809,0.889446,4212.4,4212.3,2.49239995]
[1758586531136,0.6675,4212.4,4212.3,2.49239995]
[1758586531288,0.88945485,4212.4,4212.3,2.49239995]
[1758586531725,0.88945485,4212.4,4212.3,0.1184]
[1758586531927,1.40084898,4212.4,4212.3,2.49239995]
[1758586532606,1.54103388,4212.4,4212.3,0.1184]
[1758586533424,1.54107574,4212.4,4212.3,0.1184]
[1758586534017,0.87357574,4212.4,4212.3,2.49239995]
[1758586534221,1.27825522,4213.5,4213.4,0.792]
[1758586534545,1e-08,4213.9,4213.8,3.16515487]
[1758586534705,1e-08,4213.9,4213.8,10.74072865]
[1758586534909,1e-08,4213.9,4213.8,11.9467983]
[1758586535242,0.2355,4216.0,4215.8,2.37202903]
[1758586535546,0.2355,4216.3,4215.8,6.37502903]
[1758586535931,0.432,4216.4,4215.8,6.37502903]
[1758586536239,0.2355,4216.1,4215.8,6.37502903]
[1758586537270,0.2555,4215.9,4215.8,6.37502903]
[1758586537546,0.02,4215.9,4215.8,6.37502903]
[1758586537713,0.2555,4215.9,4215.8,6.37502903]
[1758586537909,0.2555,4215.9,4215.8,4.003]
[1758586538112,0.6875,4215.9,4215.8,4.003]
[1758586538959,0.6875,4215.9,4215.0,0.432]
[1758586539286,0.2355,4215.8,4215.1,4.002]
[1758586539488,0.2355,4215.8,4215.4,2.37220357]
[1758586539785,0.2355,4215.8,4215.5,4.003]
[1758586539958,0.6675,4215.7,4215.5,4.003]
[1758586540145,0.6675,4215.6,4215.5,4.003]
[1758586540346,0.6675,4215.6,4215.5,6.37519784]
[1758586540958,0.6675,4215.6,4215.5,4.003]
[1758586541596,0.02,4215.9,4215.5,4.003]
[1758586541597,0.001,4215.8,4215.5,4.003]
[1758586541796,0.001,4215.8,4215.6,2.37214156]
[1758586541965,0.001,4215.8,4215.7,6.3750853]
[1758586542894,0.433,4215.8,4215.7,4.003]
[1758586543115,0.6685,4215.8,4215.7,4.003]
[1758586543410,0.2365,4215.8,4215.7,6.3750853]
[1758586543619,0.6685,4215.8,4215.7,6.3750853]
[1758586543776,0.6685,4215.8,4215.7,4.003]
[1758586544105,0.6685,4215.8,4215.7,4.1214]
[1758586544468,0.6685,4215.8,4215.7,6.4934853]
[1758586544891,0.001,4215.8,4215.7,6.4934853]
[1758586546989,0.001,4215.8,4215.7,2.4904853]
[1758586547190,0.001,4215.8,4215.7,6.4914853]
[1758586549903,0.6591,4215.8,4215.7,4.1194]
[1758586551069,0.2272,4215.8,4215.7,6.4914853]
[1758586551370,0.2272,4215.8,4215.7,2.4904853]
[1758586551679,0.2272,4215.8,4215.7,6.4894853]
[1758586553114,0.2272,4215.8,4215.7,4.1174]
[1758586553279,0.6591,4215.8,4215.7,4.1174]
[1758586553804,0.001,4215.8,4215.7,4.1174]
[1758586554106,0.001,4215.8,4215.7,6.4894853]
[1758586554323,0.001,4215.8,4215.7,4.1174]
[1758586555002,0.001,4215.8,4215.7,6.4894853]
[1758586555203,0.6591,4215.8,4215.7,4.1154]
[1758586556027,0.6539,4215.8,4215.7,4.1154]
[1758586556320,0.02,4215.9,4215.7,4.1154]
[1758586556493,0.4519,4215.9,4215.7,4.1154]
[1758586556895,0.02,4215.9,4215.7,4.1154]
[1758586557096,0.4519,4215.9,4215.7,4.1154]
[1758586557602,0.02,4215.9,4215.7,4.1154]
[1758586557822,0.6581,4215.8,4215.7,4.1154]
[1758586558528,0.6581,4215.8,4215.7,0.1184]
[1758586558686,0.6581,4215.8,4215.7,4.1144]
[1758586560132,1.16646505,4215.8,4215.7,4.1144]
[1758586561327,1.16746505,4215.8,4215.7,4.1144]
[1758586561533,1.16746505,4215.8,4215.7,6.4864853]
[1758586561730,0.50936505,4215.8,4215.7,6.4864853]
[1758586563152,0.73099189,4215.8,4215.7,4.1144]
[1758586564015,0.95719189,4215.8,4215.7,4.1144]
[1758586564218,1.09062161,4215.8,4215.7,4.1144]
[1758586565164,0.86517967,4215.8,4215.7,4.1094]
[1758586565316,2.80153489,4215.8,4215.7,4.1094]
[1758586565521,2.36963489,4215.8,4215.7,4.1094]
[1758586566014,2.14343489,4215.8,4215.7,6.4814853]
[1758586566221,1.71921681,4215.8,4215.7,4.1094]
[1758586566434,1.94541681,4215.8,4215.7,6.4814853]
[1758586566914,1.94541681,4215.8,4215.7,2.4904853]
[1758586567114,1.52327967,4215.8,4215.7,4.1074]
[1758586567364,1.52327967,4215.8,4215.7,0.1184]
[1758586567365,0.86517967,4215.8,4215.7,0.1184]
[1758586567528,2.36963489,4215.8,4215.7,4.1074]
[1758586567852,2.36963489,4215.8,4215.7,0.1184]
[1758586568056,2.36963489,4215.8,4215.7,4.1064]
[1758586568345,0.86517967,4215.8,4215.7,7.1021853]
[1758586568846,0.86517967,4215.8,4215.7,6.9448853]
[1758586569044,0.86517967,4215.8,4215.7,6.4784853]
[1758586570014,1.09137967,4215.8,4215.7,4.1064]
[1758586570219,1.09137967,4215.8,4215.7,6.4784853]
[1758586570637,1.09137967,4215.8,4215.7,4.1074]
[1758586570841,1.52327967,4215.8,4215.7,4.1074]
[1758586571041,1.80543316,4215.8,4215.7,4.1074]
[1758586571854,1.80543316,4215.8,4215.5,3.988]
[1758586572071,1.52227967,4215.7,4215.5,3.988]
[1758586572251,2.14557941,4215.6,4215.5,3.988]
[1758586572456,0.86417967,4215.6,4215.5,3.988]
[1758586573176,1.71815928,4215.6,4215.5,3.988]
[1758586573467,0.86417066,4215.6,4215.5,3.988]
[1758586574042,1.09037066,4215.6,4215.5,3.988]
[1758586574558,1.09035643,4215.6,4215.5,3.988]
[1758586575438,1.94415018,4215.6,4215.5,3.988]
[1758586575685,1.71795018,4215.6,4215.5,3.988]
[1758586576292,1.71795018,4215.6,4215.5,6.36019784]
[1758586576453,1.71795018,4215.6,4215.5,4.1064]
[1758586576646,1.71795018,4215.6,4215.5,6.47859784]
[1758586576841,0.86415643,4215.6,4215.5,6.94409784]
[1758586577138,0.86415643,4215.6,4215.5,6.47859784]
[1758586577338,0.86415643,4215.6,4215.5,7.10139784]
[1758586577540,0.43204628,4215.6,4215.5,8.72463116]
[1758586577739,0.001,4215.8,4215.7,3.1640853]
[1758586577946,0.02,4215.9,4215.7,3.1640853]
[1758586577947,1e-08,4215.9,4215.8,2.37202903]
[1758586578278,1e-08,4215.9,4215.8,6.81054932]
[1758586578442,1e-08,4215.9,4215.8,7.34067127]
[1758586579153,0.28391797,4216.6,4216.5,3.16363524]
[1758586579357,0.28391797,4216.6,4216.5,12.20763524]
[1758586579561,0.28391797,4216.6,4216.5,12.83043524]
[1758586580145,0.28391797,4216.6,4216.5,12.83643524]
[1758586581850,0.28391797,4216.6,4216.5,8.42063524]
[1758586582478,0.98241797,4216.6,4216.5,3.999]
[1758586583057,0.98241797,4216.6,4216.5,6.37063524]
[1758586583253,0.28391797,4216.6,4216.5,6.37063524]
[1758586583780,0.51071797,4216.6,4216.5,6.37063524]
[1758586584341,0.28391797,4216.6,4216.5,6.37063524]
[1758586585949,0.51071797,4216.6,4216.5,6.37063524]
[1758586586571,0.51071797,4216.6,4216.1,2.37180624]
[1758586586758,0.6985,4216.5,4215.5,3.004]
[1758586586964,0.6985,4216.4,4216.0,2.051]
[1758586587263,0.6985,4216.3,4216.1,3.996]
[1758586587447,0.6985,4216.2,4216.1,3.996]
[1758586588050,0.6985,4216.2,4215.9,2.37196105]
[1758586588302,0.28391797,4216.6,4215.7,2.37204189]
[1758586588303,0.6985,4216.1,4215.7,2.37204189]
[1758586588454,2.65550794,4216.6,4215.8,6.36802083]
[1758586588655,1.20119809,4216.5,4215.9,2.3719658]
[1758586588959,0.2268,4216.4,4216.1,2.37183434]
[1758586589280,0.2268,4216.3,4216.2,3.996]
[1758586589484,0.6985,4216.3,4216.2,3.996]
[1758586589778,0.28391797,4216.6,4216.2,6.36779073]
[1758586589986,0.2268,4216.5,4216.4,0.1184]
[1758586590184,0.6985,4216.5,4216.4,0.1184]
[1758586590383,0.6985,4216.5,4216.4,4.1144]
[1758586591086,0.6985,4216.5,4216.2,3.996]
[1758586591290,0.2268,4216.4,4216.2,3.996]
[1758586591810,0.2268,4216.3,4216.2,3.996]
[1758586592154,0.6985,4216.3,4216.2,3.996]
[1758586593193,0.86291748,4216.3,4216.2,4.0]
[1758586596025,3.23466522,4216.3,4216.2,4.0]
[1758586596325,3.45624034,4216.3,4216.0,4.0]
[1758586596489,0.6985,4216.2,4216.0,4.0]
[1758586597013,0.2268,4216.1,4215.8,0.01103183]
[1758586597187,1.21197595,4216.1,4215.8,4.01003183]
[1758586597388,3.29201345,4216.0,4215.8,4.01003183]
[1758586597720,3.07047276,4215.9,4215.8,4.01003183]
[1758586598505,0.6985,4215.9,4215.8,4.01003183]
[1758586599475,0.51347595,4216.1,4215.8,4.01003183]
[1758586599776,0.2268,4216.0,4215.8,4.01003183]
[1758586599971,2.3718128,4216.2,4215.8,4.01003183]
[1758586600176,0.6985,4216.0,4215.8,4.01003183]
[1758586600513,0.2268,4215.9,4215.8,0.01103183]
[1758586602288,0.6985,4215.9,4215.8,0.01103183]
[1758586604431,1.06844767,4215.9,4215.8,0.01103183]
[1758586606210,0.36994767,4215.9,4215.8,0.01103183]
[1758586606530,0.001,4216.3,4215.8,0.01103183]
[1758586606704,0.001,4216.3,4215.8,0.12943183]
[1758586606909,0.93036343,4216.2,4215.8,0.12943183]
[1758586607095,0.7087,4216.1,4215.8,0.01103183]
[1758586607298,0.7087,4216.0,4215.8,4.00703183]
[1758586607518,0.2454,4215.9,4215.8,4.00703183]
[1758586608031,0.62915568,4216.2,4215.8,4.00703183]
[1758586608223,1.74135764,4216.1,4215.8,4.00703183]
[1758586608417,0.22169178,4216.0,4215.8,4.00703183]
[1758586608742,0.1184,4216.2,4215.8,4.00703183]
[1758586608949,0.22170708,4216.1,4215.8,4.00703183]
[1758586609114,0.3638,4216.2,4215.8,4.00703183]
[1758586609300,6.41343848,4216.1,4215.8,0.01103183]
[1758586609500,2.37197276,4215.9,4215.8,0.01103183]
[1758586609695,2.37214156,4215.6,4215.5,0.004]
[1758586609960,16.43058938,4215.6,4215.5,0.004]
[1758586610246,18.42068912,4215.6,4215.5,0.004]
[1758586610420,19.21856438,4215.6,4215.5,0.004]
[1758586610875,20.49996412,4215.6,4215.5,0.004]
[1758586611434,20.49540798,4215.6,4215.5,0.004]
[1758586612331,19.21856438,4215.6,4215.5,0.004]
[1758586612559,20.49540798,4215.6,4215.5,0.004]
[1758586613086,11.56415437,4215.1,4214.8,0.004]
[1758586613293,18.48287077,4215.1,4214.8,0.004]
[1758586613434,19.19157077,4215.1,4214.8,0.004]
[1758586614691,19.98357077,4215.1,4214.8,0.004]
[1758586614834,17.61114782,4215.1,4214.8,0.004]
[1758586615034,3.85012346,4214.9,4214.8,0.004]
[1758586615243,5.14219018,4214.9,4214.8,0.004]
[1758586615448,6.94695192,4214.9,4214.8,0.004]
[1758586615655,13.13868334,4214.9,4214.8,0.004]
[1758586615866,13.98835438,4214.9,4214.8,0.004]
[1758586616069,21.00081334,4214.9,4214.8,0.004]
[1758586617975,14.81108192,4214.9,4214.8,0.004]
[1758586618144,21.00281334,4214.9,4214.8,0.004]
[1758586618476,14.81108192,4214.9,4214.8,0.004]
[1758586618638,8.04838192,4214.9,4214.8,0.004]
[1758586618843,12.68801136,4214.9,4214.8,0.004]
[1758586619285,12.93341136,4214.9,4214.8,0.004]
[1758586619486,12.87848192,4214.9,4214.8,0.004]
[1758586620262,13.72815296,4214.9,4214.8,0.004]
[1758586621677,8.87548192,4214.9,4214.8,0.004]
[1758586621976,14.93548192,4214.9,4214.8,0.004]
[1758586622545,8.87548192,4214.9,4214.8,0.004]
[1758586622749,14.93448192,4214.9,4214.8,0.004]
[1758586623342,14.93397097,4214.9,4214.8,0.004]
[1758586623586,15.78364201,4214.9,4214.8,0.004]
[1758586623787,14.93397097,4214.9,4214.8,0.004]
[1758586624151,15.78364201,4214.9,4214.8,0.004]
[1758586625581,14.93397097,4214.9,4214.8,0.004]
[1758586626391,14.93397097,4214.9,4213.6,0.6062]
[1758586626392,3.0,4213.8,4212.2,0.4379]
[1758586626600,0.792,4214.8,4211.0,0.257]
[1758586626601,7.56927762,4213.2,4211.6,0.1683]
[1758586626886,2.37405631,4212.2,4211.7,0.4379]
[1758586627098,2.3744509,4211.5,4211.4,1e-08]
[1758586627259,5.96532397,4211.5,4211.4,1e-08]
[1758586627449,12.55127031,4211.5,4211.4,1e-08]
[1758586627651,10.49927031,4211.5,4211.4,1e-08]
[1758586627858,10.76658719,4211.5,4211.4,0.43790001]
[1758586628071,3.73198441,4211.5,4211.4,0.60620001]
[1758586628249,3.22103807,4211.5,4211.4,0.60620001]
[1758586628461,0.22103807,4211.5,4211.4,0.60620001]
[1758586628663,4.024,4211.6,4211.4,1e-08]
[1758586628865,0.22041293,4211.5,4211.4,1e-08]
[1758586629248,4.24541293,4211.5,4211.4,1e-08]
[1758586629453,7.28183896,4211.5,4211.4,1e-08]
[1758586629763,1.39028036,4211.5,4211.4,0.60620001]
[1758586629958,4.24741293,4211.5,4211.4,0.60620001]
[1758586630192,7.12943433,4211.5,4211.4,1e-08]
[1758586630484,0.72798343,4211.5,4211.4,1e-08]
[1758586630649,6.62286383,4211.5,4211.4,1e-08]
[1758586630986,7.84347776,4211.5,4211.4,1e-08]
[1758586633008,5.46902686,4211.5,4211.4,1e-08]
[1758586633184,0.72798343,4211.5,4211.4,0.60620001]
[1758586633392,0.22041293,4211.5,4211.4,0.60620001]
[1758586633691,0.72798343,4211.5,4211.4,0.60620001]
[1758586634073,0.22041293,4211.5,4211.4,0.60620001]
[1758586634454,0.72753717,4211.5,4211.4,0.60620001]
[1758586634655,0.63615188,4212.2,4211.5,2.3744509]
[1758586634904,0.72710878,4212.1,4211.6,0.6062]
[1758586635106,0.72710878,4212.0,4211.7,0.6062]
[1758586635256,0.72710878,4211.9,4211.6,2.37438512]
[1758586635458,0.72710878,4211.8,4211.7,0.02374338]
[1758586635685,0.50718769,4212.2,4211.6,2.37435758]
[1758586635899,0.63615188,4212.7,4211.6,2.37435758]
[1758586635900,0.22004955,4212.1,4211.7,0.63074338]
[1758586636154,0.50719973,4212.4,4211.8,0.607]
[1758586636354,0.72724533,4212.3,4212.2,2.37405631]
[1758586636576,2.57655188,4212.9,4212.3,0.1184]
[1758586636775,0.72754578,4212.8,4212.4,0.6363]
[1758586636954,0.72754578,4212.7,4212.5,0.6363]
[1758586637182,0.72754578,4212.6,4211.9,0.1683]
[1758586637384,0.72754578,4212.5,4211.9,0.1683]
[1758586637586,0.72754578,4212.4,4212.3,2.37396495]
[1758586637844,0.72754578,4212.4,4212.3,2.84196495]
[1758586638138,0.63615188,4213.1,4212.4,2.37393721]
[1758586638280,0.72821339,4213.0,4212.5,0.6363]
[1758586638482,1.36436527,4212.9,4212.6,0.1184]
[1758586638724,0.72821339,4212.8,4212.6,0.1184]
[1758586638931,0.72821339,4212.7,4212.6,0.1184]
[1758586639133,0.72821339,4212.7,4212.6,0.5864]
[1758586639286,0.72821339,4212.7,4212.6,0.6363]
[1758586639490,0.72821339,4212.7,4212.6,3.01013088]
[1758586640498,0.72821339,4212.7,4212.6,3.54853546]
[1758586640831,0.63615188,4213.5,4213.4,2.37338016]
[1758586641053,0.7293165,4213.5,4213.4,2.37338016]
[1758586641258,0.7293165,4213.5,4213.4,3.00968016]
[1758586642616,0.7293165,4213.5,4213.4,0.6363]
[1758586643335,0.7293165,4213.5,4213.4,0.468]
[1758586643718,0.72941869,4213.5,4213.4,0.468]
[1758586644314,0.72941869,4213.5,4213.2,2.37349283]
[1758586644515,0.65615188,4213.9,4213.2,2.37349283]
[1758586644516,0.72941869,4213.4,4213.3,0.468]
[1758586645437,0.72941869,4213.4,4213.3,2.84143649]
[1758586645765,0.72941869,4213.4,4213.1,0.1683]
[1758586645968,3.02927388,4213.9,4213.1,2.37350011]
[1758586646269,0.72966568,4213.8,4213.2,2.37348385]
[1758586646461,0.72966568,4213.7,4213.2,2.37348385]
[1758586646662,0.72966568,4213.6,4213.0,0.468]
[1758586646838,0.72966568,4213.6,4212.6,0.53840458]
[1758586646839,0.72966568,4213.5,4212.6,0.468]
[1758586647033,0.72966568,4213.4,4212.9,2.37365163]
[1758586647240,0.72966568,4213.3,4212.8,2.37370484]
[1758586647438,0.72966568,4213.2,4212.8,2.37370484]
[1758586647639,0.72966568,4213.1,4212.8,2.37370484]
[1758586647844,3.24792164,4213.6,4212.8,2.37370484]
[1758586648190,0.86327445,4213.5,4212.9,2.37365574]
[1758586648492,0.72978926,4213.4,4212.9,2.37365574]
[1758586648779,0.72978926,4213.3,4212.9,2.37365574]
[1758586648974,0.72978926,4213.2,4212.6,4.025]
[1758586649159,0.72978926,4213.1,4212.6,6.39780164]
[1758586649494,0.72978926,4213.0,4212.9,0.1184]
[1758586650287,0.72978926,4213.0,4212.9,2.49206184]
[1758586650639,0.72978926,4213.0,4212.9,0.1184]
[1758586653296,0.72978926,4213.0,4212.9,2.49206184]
[1758586653450,0.1184,4213.5,4213.2,2.37344624]
[1758586653652,0.73020535,4213.4,4213.3,0.2867]
[1758586653869,0.73020535,4213.4,4213.3,0.1184]
[1758586654392,0.73020535,4213.4,4213.3,2.49183649]
[1758586654554,0.73020535,4213.4,4213.3,0.1184]
[1758586654763,0.73020535,4213.4,4213.3,3.12813649]
[1758586655090,0.50924404,4213.4,4213.3,3.55990273]
[1758586655260,0.02,4213.9,4213.7,2.37319993]
[1758586655460,0.73014838,4213.8,4213.7,3.00949993]
[1758586656195,0.021,4213.9,4213.7,3.00949993]
[1758586656496,0.021,4213.9,4213.5,6.39431291]
[1758586656497,0.021,4213.9,4213.8,3.00945487]
[1758586657480,0.021,4213.9,4213.8,3.03318641]
[1758586658653,0.021,4213.9,4213.8,3.00945487]
[1758586659253,0.021,4213.9,4213.8,3.80145487]
[1758586661416,0.021,4213.9,4213.8,7.82045487]
[1758586661612,0.021,4213.9,4213.8,8.56609914]
[1758586661813,0.021,4213.9,4213.8,7.77409914]
[1758586662120,0.021,4213.9,4213.8,9.82609914]
[1758586662722,0.021,4213.9,4213.8,7.60379914]
[1758586663036,0.021,4213.9,4213.8,7.13479914]
[1758586664733,0.021,4213.9,4213.8,7.77109914]
[1758586665232,0.021,4213.9,4213.8,7.88949914]
[1758586666903,0.021,4213.9,4213.8,7.72119914]
[1758586667438,0.021,4213.9,4213.8,7.88949914]
[1758586669448,0.021,4213.9,4213.8,7.72119914]
[1758586670234,0.021,4213.9,4213.8,7.25319914]
[1758586673233,0.6875,4213.9,4213.8,0.1184]
[1758586673408,0.6875,4213.9,4213.8,4.1274]
[1758586673612,0.6875,4213.9,4213.8,6.50055487]
[1758586675823,0.6875,4213.9,4213.8,4.1274]
[1758586676915,0.6875,4213.9,4213.8,6.50055487]
[1758586677915,0.6875,4213.9,4213.8,4.1274]
[1758586678337,0.021,4213.9,4213.8,6.50055487]
[1758586678543,0.6875,4213.9,4213.8,6.50055487]
[1758586678717,0.6875,4213.9,4213.8,0.1184]
[1758586679052,0.90911692,4213.9,4213.3,1.368]
[1758586679349,1.3986748,4213.8,4213.4,4.1254]
[1758586679653,1.0419244,4213.7,4213.4,4.1254]
[1758586679953,0.88811692,4213.6,4213.4,4.1254]
[1758586680246,0.6665,4213.5,4213.4,4.1254]
[1758586680411,0.88817026,4213.5,4213.4,4.1254]
[1758586680616,0.22167026,4213.5,4213.4,6.49878016]
[1758586680813,0.2386,4213.7,4213.5,2.37328226]
[1758586681049,0.22171247,4213.6,4213.5,2.37328226]
[1758586681255,0.46031247,4213.6,4213.5,2.37328226]
[1758586681955,0.22171247,4213.6,4213.5,2.51541549]
[1758586682159,0.021,4213.9,4213.8,2.37315487]
[1758586682315,0.24276142,4213.9,4213.8,6.37815487]
[1758586682514,0.24276142,4213.9,4213.8,6.49655487]
[1758586683154,1.42052738,4213.9,4213.8,4.1234]
[1758586683454,1.57588999,4213.9,4213.8,4.1234]
[1758586683652,1.06462403,4213.9,4213.8,4.1234]
[1758586684247,1.57605217,4213.9,4213.8,4.1234]
[1758586685446,0.90955217,4213.9,4213.8,4.1234]
[1758586685646,0.75418956,4213.9,4213.8,6.49655487]
[1758586686020,0.24276142,4213.9,4213.8,6.49655487]
[1758586686220,0.021,4213.9,4213.8,7.13285487]
[1758586687358,0.001,4213.9,4213.8,10.92485487]
[1758586687668,0.001,4214.4,4213.9,3.16509855]
[1758586687876,0.001,4214.4,4214.3,2.37287331]
[1758586688038,0.001,4214.4,4214.3,6.49727331]
[1758586688352,0.001,4214.4,4214.3,7.13357331]
[1758586689373,0.001,4214.4,4214.3,6.49727331]
[1758586689518,0.001,4214.4,4214.3,7.85229923]
[1758586689954,0.001,4214.4,4214.3,8.02059923]
[1758586690988,0.001,4214.4,4214.3,10.07259923]
[1758586691679,0.001,4214.4,4214.3,10.53620214]